[Event "Late-Titled-Tuesday-Blitz-October-10-2023"]
[Site "Chess.com"]
[Date "2023.10.10"]
[Round "5"]
[White "The_Princess_Moon"]
[Black "WPWPWP-2015"]
[Result "0-1"]
[WhiteElo "2294"]
[BlackElo "2525"]
[TimeControl "180+1"]
[EndTime "14:51:40 PDT"]
[Termination "WPWPWP-2015 won by resignation"]

1. e4 {[%clk 0:03:00.9]} 1... c5 {[%clk 0:02:58.1]} 2. Nf3 {[%clk 0:03:00.2]}
2... d6 {[%clk 0:02:40.7]} 3. c3 {[%clk 0:02:58.4]} 3... Nf6 {[%clk 0:02:39.1]}
4. h3 {[%clk 0:02:58.4]} 4... e6 {[%clk 0:02:36.1]} 5. Bd3 {[%clk 0:02:58.7]}
5... Be7 {[%clk 0:02:35.1]} 6. Bc2 {[%clk 0:02:59.1]} 6... c4 {[%clk 0:02:35.2]}
7. O-O {[%clk 0:02:58.6]} 7... O-O {[%clk 0:02:34.6]} 8. b3 {[%clk 0:02:58.1]}
8... b5 {[%clk 0:02:34.3]} 9. Na3 {[%clk 0:02:56.1]} 9... cxb3 {[%clk
0:02:30.3]} 10. axb3 {[%clk 0:02:54.5]} 10... Qb6 {[%clk 0:02:29.1]} 11. d3
{[%clk 0:02:50.2]} 11... Bb7 {[%clk 0:02:28.4]} 12. Be3 {[%clk 0:02:49.3]} 12...
Qc6 {[%clk 0:02:27.3]} 13. Qd2 {[%clk 0:02:43.7]} 13... a6 {[%clk 0:02:23.6]}
14. Rac1 {[%clk 0:02:38.9]} 14... e5 {[%clk 0:02:19.2]} 15. Bb1 {[%clk
0:02:29.9]} 15... a5 {[%clk 0:02:13.4]} 16. Bg5 {[%clk 0:02:24]} 16... Nbd7
{[%clk 0:02:11.7]} 17. Nc2 {[%clk 0:02:22.6]} 17... h6 {[%clk 0:02:03.9]} 18.
Bxf6 {[%clk 0:02:22.1]} 18... Nxf6 {[%clk 0:02:04.2]} 19. Ne3 {[%clk 0:02:22.6]}
19... d5 {[%clk 0:02:02.9]} 20. Nf5 {[%clk 0:02:20.2]} 20... Ba3 {[%clk
0:02:02.1]} 21. Rce1 {[%clk 0:01:56.7]} 21... dxe4 {[%clk 0:01:59.1]} 22. dxe4
{[%clk 0:01:51.9]} 22... Rfe8 {[%clk 0:01:57.7]} 23. b4 {[%clk 0:01:23.4]} 23...
axb4 {[%clk 0:01:51]} 24. cxb4 {[%clk 0:01:24.3]} 24... Ra4 {[%clk 0:01:38.3]}
25. Qe2 {[%clk 0:00:46.4]} 25... Rxb4 {[%clk 0:01:32.2]} 26. Rd1 {[%clk
0:00:46.5]} 26... Nxe4 {[%clk 0:01:22.5]} 27. Bxe4 {[%clk 0:00:38.6]} 27... Rxe4
{[%clk 0:01:21.7]} 28. Qa2 {[%clk 0:00:34.6]} 28... Rf4 {[%clk 0:01:08.1]} 29.
Qxa3 {[%clk 0:00:17.7]} 29... Rxf5 {[%clk 0:01:06.8]} 30. Rd6 {[%clk 0:00:18.1]}
30... Qe4 {[%clk 0:00:57.7]} 31. Re1 {[%clk 0:00:17.9]} 31... Rxf3 {[%clk
0:00:55.5]} 32. Qc1 {[%clk 0:00:07.9]} 32... Qb4 {[%clk 0:00:50.6]} 33. gxf3
{[%clk 0:00:07.1]} 33... Qxd6 {[%clk 0:00:49.9]} 34. Rd1 {[%clk 0:00:06.8]}
34... Qg6+ {[%clk 0:00:49]} 35. Kf1 {[%clk 0:00:06]} 35... Bxf3 {[%clk
0:00:48.5]} 0-1

[Event "Late-Titled-Tuesday-Blitz-October-10-2023"]
[Site "Chess.com"]
[Date "2023.10.10"]
[Round "5"]
[White "The_Straightforward_Rook"]
[Black "ferdipy"]
[Result "1-0"]
[WhiteElo "2546"]
[BlackElo "2355"]
[TimeControl "180+1"]
[EndTime "14:51:40 PDT"]
[Termination "The_Straightforward_Rook won by resignation"]

1. d4 {[%clk 0:03:00.9]} 1... e5 {[%clk 0:01:39.8]} 2. dxe5 {[%clk 0:02:58.9]}
2... d6 {[%clk 0:01:39.9]} 3. Nf3 {[%clk 0:02:57.7]} 3... Nc6 {[%clk 0:01:38.6]}
4. Bg5 {[%clk 0:02:56.4]} 4... f6 {[%clk 0:01:38.6]} 5. exf6 {[%clk 0:02:55.6]}
5... gxf6 {[%clk 0:01:39.5]} 6. Bh4 {[%clk 0:02:56]} 6... Bg4 {[%clk 0:01:39.7]}
7. e3 {[%clk 0:02:54.4]} 7... Qd7 {[%clk 0:01:39.6]} 8. Be2 {[%clk 0:02:52.5]}
8... O-O-O {[%clk 0:01:28]} 9. Nc3 {[%clk 0:02:48.3]} 9... Ne5 {[%clk
0:01:26.5]} 10. Nxe5 {[%clk 0:02:43.3]} 10... Bxe2 {[%clk 0:01:27]} 11. Nxe2
{[%clk 0:02:39.9]} 11... dxe5 {[%clk 0:01:24.2]} 12. Qxd7+ {[%clk 0:02:39.9]}
12... Rxd7 {[%clk 0:01:24.3]} 13. Rd1 {[%clk 0:02:37.1]} 13... Bg7 {[%clk
0:01:21.1]} 14. f3 {[%clk 0:02:31.1]} 14... Ne7 {[%clk 0:01:20.3]} 15. Rxd7
{[%clk 0:02:28.9]} 15... Kxd7 {[%clk 0:01:19.3]} 16. e4 {[%clk 0:02:29.5]} 16...
Nc6 {[%clk 0:01:14.3]} 17. Ng3 {[%clk 0:02:23.4]} 17... Ke6 {[%clk 0:01:09.6]}
18. Nf5 {[%clk 0:02:22.3]} 18... Bf8 {[%clk 0:01:09.7]} 19. Ke2 {[%clk
0:02:20.1]} 19... Bc5 {[%clk 0:01:09.9]} 20. Rd1 {[%clk 0:02:18.6]} 20... Nb4
{[%clk 0:01:08.5]} 21. c3 {[%clk 0:02:16.3]} 21... Nc6 {[%clk 0:01:07.8]} 22. b4
{[%clk 0:02:06.6]} 22... Bb6 {[%clk 0:01:08]} 23. Bf2 {[%clk 0:02:05.4]} 23...
h5 {[%clk 0:01:06]} 24. a4 {[%clk 0:02:00.4]} 24... Bxf2 {[%clk 0:01:04.9]} 25.
Kxf2 {[%clk 0:02:01.3]} 25... a6 {[%clk 0:01:04.6]} 26. h4 {[%clk 0:01:54.8]}
26... Ra8 {[%clk 0:00:55.5]} 27. g4 {[%clk 0:01:53.7]} 27... Rh8 {[%clk
0:00:54.1]} 28. gxh5 {[%clk 0:01:45]} 28... Ne7 {[%clk 0:00:51.2]} 29. Ng3
{[%clk 0:01:27.4]} 29... f5 {[%clk 0:00:49.3]} 30. exf5+ {[%clk 0:01:25]} 30...
Nxf5 {[%clk 0:00:50.2]} 31. Nxf5 {[%clk 0:01:25.3]} 31... Kxf5 {[%clk
0:00:50.2]} 32. Rd7 {[%clk 0:01:25.9]} 32... Rxh5 {[%clk 0:00:47.8]} 33. Rxc7
{[%clk 0:01:20.1]} 33... Rxh4 {[%clk 0:00:42.7]} 34. Rxb7 {[%clk 0:01:20.4]}
34... Rc4 {[%clk 0:00:41.4]} 35. Rb6 {[%clk 0:01:15.1]} 35... Rxc3 {[%clk
0:00:41.4]} 36. Rxa6 {[%clk 0:01:15.7]} 36... Rb3 {[%clk 0:00:30.4]} 37. b5
{[%clk 0:01:12.2]} 37... Rb2+ {[%clk 0:00:29]} 38. Kg3 {[%clk 0:01:10.3]} 38...
Rb3 {[%clk 0:00:29.6]} 39. Ra8 {[%clk 0:01:05.7]} 39... e4 {[%clk 0:00:29.2]}
40. Rf8+ {[%clk 0:01:05.8]} 40... Kg6 {[%clk 0:00:27.5]} 41. Kf2 {[%clk
0:01:04.1]} 41... Rb4 {[%clk 0:00:23.9]} 42. Rf4 {[%clk 0:00:59.2]} 42... Rxa4
{[%clk 0:00:18.9]} 43. Rxe4 {[%clk 0:00:59.3]} 43... Ra2+ {[%clk 0:00:18.6]} 44.
Re2 {[%clk 0:00:58.3]} 44... Rb2 {[%clk 0:00:19.5]} 45. Rxb2 {[%clk 0:00:58.3]}
1-0

[Event "Late-Titled-Tuesday-Blitz-October-10-2023"]
[Site "Chess.com"]
[Date "2023.10.10"]
[Round "5"]
[White "Sacbutt"]
[Black "DIMONBANAN"]
[Result "0-1"]
[WhiteElo "2188"]
[BlackElo "2500"]
[TimeControl "180+1"]
[EndTime "14:51:55 PDT"]
[Termination "DIMONBANAN won by resignation"]

1. d4 {[%clk 0:03:00.9]} 1... d5 {[%clk 0:02:57.5]} 2. c4 {[%clk 0:03:00.3]}
2... e6 {[%clk 0:02:58]} 3. Nc3 {[%clk 0:03:00]} 3... Be7 {[%clk 0:02:58.3]} 4.
Nf3 {[%clk 0:02:59.5]} 4... Nf6 {[%clk 0:02:58.7]} 5. Bg5 {[%clk 0:03:00]} 5...
O-O {[%clk 0:02:58.8]} 6. e3 {[%clk 0:03:00.3]} 6... Nbd7 {[%clk 0:02:59.5]} 7.
Rc1 {[%clk 0:02:57.2]} 7... a6 {[%clk 0:02:59.2]} 8. cxd5 {[%clk 0:02:56.1]}
8... exd5 {[%clk 0:02:55.8]} 9. Bd3 {[%clk 0:02:54.8]} 9... c6 {[%clk
0:02:55.7]} 10. O-O {[%clk 0:02:54]} 10... Re8 {[%clk 0:02:56]} 11. a3 {[%clk
0:02:51.4]} 11... Nf8 {[%clk 0:02:55.7]} 12. h3 {[%clk 0:02:49.4]} 12... Ne4
{[%clk 0:02:50.6]} 13. Bxe7 {[%clk 0:02:35]} 13... Qxe7 {[%clk 0:02:51.5]} 14.
b4 {[%clk 0:02:27]} 14... Nd6 {[%clk 0:02:46.1]} 15. Re1 {[%clk 0:02:16.6]}
15... Bf5 {[%clk 0:02:39.7]} 16. Na4 {[%clk 0:02:03]} 16... Bxd3 {[%clk
0:02:35.1]} 17. Qxd3 {[%clk 0:02:03.9]} 17... Nc4 {[%clk 0:02:35.7]} 18. Nc5
{[%clk 0:01:49.2]} 18... b5 {[%clk 0:02:31.6]} 19. Nd2 {[%clk 0:01:40.3]} 19...
Nd7 {[%clk 0:02:30.3]} 20. Nxc4 {[%clk 0:01:25.1]} 20... bxc4 {[%clk 0:02:19.4]}
21. Qf5 {[%clk 0:01:20.2]} 21... Nxc5 {[%clk 0:02:19.5]} 22. bxc5 {[%clk
0:01:08.7]} 22... Rab8 {[%clk 0:02:09.9]} 23. Rb1 {[%clk 0:01:08.6]} 23... Rb3
{[%clk 0:02:09.2]} 24. Rxb3 {[%clk 0:01:01.6]} 24... cxb3 {[%clk 0:02:10.1]} 25.
Rb1 {[%clk 0:01:01.1]} 25... Rb8 {[%clk 0:02:10.2]} 26. Rb2 {[%clk 0:00:48.6]}
26... g6 {[%clk 0:02:07.3]} 27. Qd3 {[%clk 0:00:48.2]} 27... Qb7 {[%clk
0:02:06.7]} 28. Kf1 {[%clk 0:00:46.1]} 28... a5 {[%clk 0:02:06.9]} 29. e4 {[%clk
0:00:26.7]} 29... dxe4 {[%clk 0:01:59.5]} 30. Qxe4 {[%clk 0:00:27.6]} 30... Qb5+
{[%clk 0:01:58.3]} 31. Kg1 {[%clk 0:00:26.8]} 31... a4 {[%clk 0:01:52.4]} 32. h4
{[%clk 0:00:27]} 32... Qc4 {[%clk 0:01:49.2]} 33. Kh2 {[%clk 0:00:20.4]} 33...
Rd8 {[%clk 0:01:43.6]} 34. Rd2 {[%clk 0:00:18.4]} 34... Qc1 {[%clk 0:01:30]} 35.
Qe7 {[%clk 0:00:16.1]} 35... Qxd2 {[%clk 0:00:48.3]} 36. Qxd8+ {[%clk
0:00:15.4]} 36... Kg7 {[%clk 0:00:49]} 37. g4 {[%clk 0:00:11.1]} 37... Qxf2+
{[%clk 0:00:45.9]} 38. Kh3 {[%clk 0:00:09.2]} 38... Qe3+ {[%clk 0:00:41.9]} 39.
Kh2 {[%clk 0:00:09.4]} 39... Qf4+ {[%clk 0:00:42]} 40. Kh3 {[%clk 0:00:09.6]}
40... b2 {[%clk 0:00:42.5]} 41. Qb6 {[%clk 0:00:06.9]} 41... Qxd4 {[%clk
0:00:41.1]} 0-1

[Event "Late-Titled-Tuesday-Blitz-October-10-2023"]
[Site "Chess.com"]
[Date "2023.10.10"]
[Round "5"]
[White "LoaySameer"]
[Black "Qvalda"]
[Result "0-1"]
[WhiteElo "2545"]
[BlackElo "2404"]
[TimeControl "180+1"]
[EndTime "14:52:01 PDT"]
[Termination "Qvalda won by resignation"]

1. Nf3 {[%clk 0:03:00.9]} 1... Nf6 {[%clk 0:02:57.5]} 2. g3 {[%clk 0:03:01.2]}
2... b6 {[%clk 0:02:57.6]} 3. Bg2 {[%clk 0:03:01.9]} 3... Bb7 {[%clk 0:02:58.3]}
4. O-O {[%clk 0:03:02.7]} 4... e6 {[%clk 0:02:58.2]} 5. d3 {[%clk 0:03:03.2]}
5... Be7 {[%clk 0:02:58.7]} 6. e4 {[%clk 0:03:03.8]} 6... d5 {[%clk 0:02:56.2]}
7. e5 {[%clk 0:03:03.2]} 7... Nfd7 {[%clk 0:02:55.9]} 8. Re1 {[%clk 0:03:04.1]}
8... c5 {[%clk 0:02:54.4]} 9. h4 {[%clk 0:03:04.6]} 9... Nc6 {[%clk 0:02:55]}
10. h5 {[%clk 0:03:04.9]} 10... Qc7 {[%clk 0:02:55.6]} 11. Bf4 {[%clk 0:03:05]}
11... O-O-O {[%clk 0:02:52.7]} 12. a4 {[%clk 0:03:05.4]} 12... h6 {[%clk
0:02:45.2]} 13. Nc3 {[%clk 0:03:06]} 13... a6 {[%clk 0:02:41.5]} 14. Nxd5 {[%clk
0:03:06.5]} 14... exd5 {[%clk 0:02:41.1]} 15. e6 {[%clk 0:03:07.4]} 15... Bd6
{[%clk 0:02:37.9]} 16. e7 {[%clk 0:03:07.9]} 16... Rde8 {[%clk 0:02:23.8]} 17.
Bxd6 {[%clk 0:02:47.5]} 17... Qxd6 {[%clk 0:02:22.3]} 18. Nh4 {[%clk 0:02:48.4]}
18... Nxe7 {[%clk 0:01:44.2]} 19. Qg4 {[%clk 0:02:41.9]} 19... g5 {[%clk
0:01:36.6]} 20. hxg6 {[%clk 0:02:38.8]} 20... Nxg6 {[%clk 0:01:35]} 21. Nf5
{[%clk 0:02:38.7]} 21... Qf6 {[%clk 0:01:31.5]} 22. c4 {[%clk 0:02:08.7]} 22...
h5 {[%clk 0:01:09.2]} 23. Qh3 {[%clk 0:02:08.3]} 23... dxc4 {[%clk 0:00:50.5]}
24. Bxb7+ {[%clk 0:02:08.3]} 24... Kxb7 {[%clk 0:00:51.4]} 25. Qg2+ {[%clk
0:02:09]} 25... Kc7 {[%clk 0:00:38.7]} 26. Qd5 {[%clk 0:02:06.9]} 26... Nge5
{[%clk 0:00:27.6]} 27. Nh4 {[%clk 0:01:28.5]} 27... Rhg8 {[%clk 0:00:24.7]} 28.
Re4 {[%clk 0:01:19.2]} 28... Qc6 {[%clk 0:00:23.1]} 29. dxc4 {[%clk 0:01:18.8]}
29... Qxd5 {[%clk 0:00:22.8]} 30. cxd5 {[%clk 0:01:19.7]} 30... Rg4 {[%clk
0:00:20.8]} 31. Ree1 {[%clk 0:01:17.4]} 31... Rxh4 {[%clk 0:00:19.6]} 32. gxh4
{[%clk 0:01:17.9]} 32... Nf3+ {[%clk 0:00:19.8]} 33. Kf1 {[%clk 0:01:18.8]}
33... Nxe1 {[%clk 0:00:18.9]} 34. a5 {[%clk 0:01:15.4]} 34... b5 {[%clk
0:00:18]} 35. Ra3 {[%clk 0:01:15.4]} 35... Nc2 {[%clk 0:00:17.8]} 36. Rg3 {[%clk
0:01:16.1]} 36... Nd4 {[%clk 0:00:17.2]} 37. Rg5 {[%clk 0:01:16.5]} 37... Kd6
{[%clk 0:00:16.8]} 38. Rxh5 {[%clk 0:01:17]} 38... Nf6 {[%clk 0:00:17]} 39. Rh6
{[%clk 0:01:17.2]} 39... Ke5 {[%clk 0:00:16.4]} 40. d6 {[%clk 0:01:17.5]} 40...
Rd8 {[%clk 0:00:15.6]} 41. f4+ {[%clk 0:01:17.7]} 41... Kf5 {[%clk 0:00:15]} 42.
Kf2 {[%clk 0:01:15.8]} 42... Rxd6 {[%clk 0:00:15]} 43. Rh8 {[%clk 0:01:16.7]}
43... Ne6 {[%clk 0:00:14.6]} 44. Ra8 {[%clk 0:01:16.5]} 44... Nxf4 {[%clk
0:00:14.5]} 45. Rb8 {[%clk 0:01:17.1]} 45... Ne6 {[%clk 0:00:14]} 46. Rb6 {[%clk
0:01:17]} 46... Rxb6 {[%clk 0:00:12.5]} 47. axb6 {[%clk 0:01:17.9]} 47... Nd8
{[%clk 0:00:12.7]} 48. b7 {[%clk 0:01:18.8]} 48... Nxb7 {[%clk 0:00:12.8]} 49.
h5 {[%clk 0:01:19.7]} 49... Nxh5 {[%clk 0:00:12.6]} 50. Ke3 {[%clk 0:01:20.6]}
50... Nf6 {[%clk 0:00:12.6]} 51. Kd3 {[%clk 0:01:21.5]} 51... Ke5 {[%clk
0:00:12.7]} 52. Kc3 {[%clk 0:01:22.4]} 52... Kd5 {[%clk 0:00:13.2]} 53. Kd2
{[%clk 0:01:23.3]} 53... Kc6 {[%clk 0:00:13.6]} 54. Kd3 {[%clk 0:01:24.2]} 54...
Kb6 {[%clk 0:00:14.3]} 55. Ke3 {[%clk 0:01:25.1]} 55... Ne8 {[%clk 0:00:14.6]}
56. Kd3 {[%clk 0:01:26]} 56... Nc7 {[%clk 0:00:15.4]} 57. Kc2 {[%clk 0:01:26.9]}
57... c4 {[%clk 0:00:15.1]} 58. Kc3 {[%clk 0:01:27.8]} 58... Kc5 {[%clk
0:00:15.4]} 59. b4+ {[%clk 0:01:28.7]} 59... cxb3 {[%clk 0:00:14.9]} 60. Kxb3
{[%clk 0:01:29.6]} 60... a5 {[%clk 0:00:15.3]} 61. Kc3 {[%clk 0:01:30.5]} 61...
f5 {[%clk 0:00:15.5]} 62. Kc2 {[%clk 0:01:31.4]} 62... f4 {[%clk 0:00:15.9]} 63.
Kd2 {[%clk 0:01:32.3]} 63... a4 {[%clk 0:00:16.3]} 64. Ke2 {[%clk 0:01:33.2]}
64... a3 {[%clk 0:00:16.7]} 65. Kf3 {[%clk 0:01:34.1]} 65... a2 {[%clk 0:00:17]}
66. Kxf4 {[%clk 0:01:35]} 66... a1=Q {[%clk 0:00:17.2]} 67. Ke4 {[%clk
0:01:35.9]} 67... Qd1 {[%clk 0:00:17]} 68. Ke3 {[%clk 0:01:36.8]} 68... Qd4+
{[%clk 0:00:16.6]} 69. Kf3 {[%clk 0:01:37.2]} 69... Qe5 {[%clk 0:00:15.8]} 70.
Kg2 {[%clk 0:01:38.1]} 70... Qf4 {[%clk 0:00:15.2]} 71. Kh3 {[%clk 0:01:38.7]}
71... Qg5 {[%clk 0:00:14.9]} 72. Kh2 {[%clk 0:01:39.3]} 72... Kd4 {[%clk
0:00:15]} 73. Kh1 {[%clk 0:01:39.7]} 73... Ke3 {[%clk 0:00:14.9]} 0-1

[Event "Late-Titled-Tuesday-Blitz-October-10-2023"]
[Site "Chess.com"]
[Date "2023.10.10"]
[Round "5"]
[White "rychessmaster1"]
[Black "vyprd"]
[Result "1-0"]
[WhiteElo "2703"]
[BlackElo "2363"]
[TimeControl "180+1"]
[EndTime "14:52:02 PDT"]
[Termination "rychessmaster1 won by resignation"]

1. Nf3 {[%clk 0:03:00.9]} 1... d5 {[%clk 0:02:59.4]} 2. e3 {[%clk 0:03:00.1]}
2... c6 {[%clk 0:02:58.9]} 3. c4 {[%clk 0:03:00]} 3... Nf6 {[%clk 0:02:58.5]} 4.
Nc3 {[%clk 0:02:58]} 4... e6 {[%clk 0:02:58.3]} 5. b3 {[%clk 0:02:57.4]} 5...
Bd6 {[%clk 0:02:57.5]} 6. Bb2 {[%clk 0:02:55.7]} 6... O-O {[%clk 0:02:56.7]} 7.
Be2 {[%clk 0:02:54.9]} 7... e5 {[%clk 0:02:48.2]} 8. cxd5 {[%clk 0:02:54.9]}
8... cxd5 {[%clk 0:02:47.7]} 9. Nb5 {[%clk 0:02:55.4]} 9... Nc6 {[%clk
0:02:47.6]} 10. Nxd6 {[%clk 0:02:54.4]} 10... Qxd6 {[%clk 0:02:48.5]} 11. d4
{[%clk 0:02:54.5]} 11... e4 {[%clk 0:02:42.1]} 12. Ne5 {[%clk 0:02:54.9]} 12...
Be6 {[%clk 0:02:35]} 13. O-O {[%clk 0:02:45.4]} 13... Rfc8 {[%clk 0:02:34.1]}
14. Rc1 {[%clk 0:02:38.8]} 14... Nd7 {[%clk 0:02:33]} 15. Nxd7 {[%clk
0:02:33.9]} 15... Qxd7 {[%clk 0:02:33.9]} 16. Qd2 {[%clk 0:02:29.4]} 16... Bg4
{[%clk 0:02:28.1]} 17. Rc3 {[%clk 0:02:22.9]} 17... Bxe2 {[%clk 0:02:25.5]} 18.
Qxe2 {[%clk 0:02:23.8]} 18... Nb4 {[%clk 0:02:23.2]} 19. Qd2 {[%clk 0:01:56]}
19... Nxa2 {[%clk 0:02:08.8]} 20. Rxc8+ {[%clk 0:01:56]} 20... Rxc8 {[%clk
0:02:07.2]} 21. Ra1 {[%clk 0:01:52.4]} 21... Qb5 {[%clk 0:01:55.1]} 22. Rxa2
{[%clk 0:01:49.1]} 22... Qxb3 {[%clk 0:01:55.2]} 23. Rxa7 {[%clk 0:01:49.7]}
23... h5 {[%clk 0:01:51.3]} 24. Ra3 {[%clk 0:01:44.6]} 24... Qb5 {[%clk
0:01:36.4]} 25. h4 {[%clk 0:01:39.1]} 25... g6 {[%clk 0:01:33.6]} 26. Ra5 {[%clk
0:01:32.4]} 26... Qb3 {[%clk 0:01:31.1]} 27. Rc5 {[%clk 0:01:29.1]} 27... Ra8
{[%clk 0:01:29.8]} 28. Qc2 {[%clk 0:01:27.8]} 28... Qa2 {[%clk 0:01:22.6]} 29.
Rc8+ {[%clk 0:01:26.9]} 29... Kg7 {[%clk 0:01:19.2]} 30. Rxa8 {[%clk 0:01:26.9]}
30... Qxa8 {[%clk 0:01:20]} 31. Qb3 {[%clk 0:01:23.9]} 31... Qd8 {[%clk
0:01:17.8]} 32. g3 {[%clk 0:01:24.3]} 32... g5 {[%clk 0:01:11.3]} 33. hxg5
{[%clk 0:01:20.1]} 33... Qxg5 {[%clk 0:01:10.4]} 34. Ba3 {[%clk 0:01:19.4]}
34... h4 {[%clk 0:01:07.7]} 35. Bd6 {[%clk 0:01:13.2]} 35... h3 {[%clk
0:01:05.8]} 36. Qd1 {[%clk 0:01:12.2]} 36... b5 {[%clk 0:00:57.6]} 37. Kh2
{[%clk 0:01:09.5]} 37... Qf5 {[%clk 0:00:56.7]} 38. Qe2 {[%clk 0:01:07.7]} 38...
f6 {[%clk 0:00:53.7]} 39. g4 {[%clk 0:01:05.4]} 39... Qd7 {[%clk 0:00:51.4]} 40.
Bb4 {[%clk 0:01:00.9]} 40... Kg6 {[%clk 0:00:46.8]} 41. Kxh3 {[%clk 0:00:57.5]}
41... Kg5 {[%clk 0:00:46.1]} 42. f4+ {[%clk 0:00:57.7]} 42... Kg6 {[%clk
0:00:43.3]} 43. Kg3 {[%clk 0:00:55.4]} 43... Qc6 {[%clk 0:00:37]} 44. Bc5 {[%clk
0:00:55.1]} 44... Qa6 {[%clk 0:00:36.5]} 45. g5 {[%clk 0:00:44.7]} 45... Qa1
{[%clk 0:00:32.4]} 46. gxf6 {[%clk 0:00:41.1]} 46... Qg1+ {[%clk 0:00:28.8]} 47.
Qg2 {[%clk 0:00:39.4]} 47... Qxe3+ {[%clk 0:00:28.5]} 48. Kh4+ {[%clk
0:00:39.9]} 48... Kxf6 {[%clk 0:00:28.3]} 49. Qg5+ {[%clk 0:00:39.8]} 49... Ke6
{[%clk 0:00:25.1]} 50. f5+ {[%clk 0:00:38.4]} 1-0

[Event "Late-Titled-Tuesday-Blitz-October-10-2023"]
[Site "Chess.com"]
[Date "2023.10.10"]
[Round "5"]
[White "Rutricks"]
[Black "Gravity_Chess"]
[Result "0-1"]
[WhiteElo "2665"]
[BlackElo "2884"]
[TimeControl "180+1"]
[EndTime "14:52:04 PDT"]
[Termination "Gravity_Chess won by resignation"]

1. Nf3 {[%clk 0:01:45.9]} 1... Nf6 {[%clk 0:02:59.8]} 2. b3 {[%clk 0:01:46.8]}
2... b6 {[%clk 0:02:59.5]} 3. Bb2 {[%clk 0:01:47.7]} 3... Bb7 {[%clk 0:02:59.9]}
4. g3 {[%clk 0:01:48.6]} 4... Bxf3 {[%clk 0:02:59.8]} 5. exf3 {[%clk 0:01:49.5]}
5... e6 {[%clk 0:02:57.4]} 6. Bg2 {[%clk 0:01:50.4]} 6... d5 {[%clk 0:02:57.4]}
7. a4 {[%clk 0:01:51.3]} 7... Nbd7 {[%clk 0:02:56.1]} 8. O-O {[%clk 0:01:52.2]}
8... Be7 {[%clk 0:02:55.9]} 9. a5 {[%clk 0:01:52.9]} 9... O-O {[%clk 0:02:55.5]}
10. c4 {[%clk 0:01:53.8]} 10... c6 {[%clk 0:02:55.1]} 11. Qe2 {[%clk 0:01:54.4]}
11... Nc5 {[%clk 0:02:53.5]} 12. Qe3 {[%clk 0:01:46.2]} 12... d4 {[%clk
0:02:47.2]} 13. Bxd4 {[%clk 0:01:28.6]} 13... Nxb3 {[%clk 0:02:47.4]} 14. Bxb6
{[%clk 0:01:19.6]} 14... axb6 {[%clk 0:02:24.8]} 15. Qxb3 {[%clk 0:01:20]} 15...
bxa5 {[%clk 0:02:25.5]} 16. f4 {[%clk 0:01:19.9]} 16... Rb8 {[%clk 0:02:22.7]}
17. Qa4 {[%clk 0:01:16.2]} 17... Bb4 {[%clk 0:02:10.3]} 18. Qxc6 {[%clk
0:00:51.9]} 18... Qd4 {[%clk 0:02:09.1]} 19. Nc3 {[%clk 0:00:39.5]} 19... Rfc8
{[%clk 0:02:08.8]} 20. Qf3 {[%clk 0:00:25.3]} 20... Rxc4 {[%clk 0:02:00.9]} 21.
Rfd1 {[%clk 0:00:25.4]} 21... h6 {[%clk 0:01:59.6]} 22. Na2 {[%clk 0:00:12.9]}
22... Rc2 {[%clk 0:01:46.7]} 23. Nxb4 {[%clk 0:00:12.3]} 23... axb4 {[%clk
0:01:47.2]} 24. Qe3 {[%clk 0:00:09.3]} 24... Qxe3 {[%clk 0:01:39.2]} 25. dxe3
{[%clk 0:00:10.2]} 25... b3 {[%clk 0:01:21.5]} 26. Rab1 {[%clk 0:00:10.1]} 26...
g6 {[%clk 0:01:04.2]} 27. Bf3 {[%clk 0:00:09.4]} 27... h5 {[%clk 0:01:00.6]} 28.
h3 {[%clk 0:00:09.5]} 28... Kg7 {[%clk 0:01:00.7]} 29. Kg2 {[%clk 0:00:09.7]}
29... Kf8 {[%clk 0:00:56.2]} 30. g4 {[%clk 0:00:10]} 30... hxg4 {[%clk
0:00:56.2]} 31. hxg4 {[%clk 0:00:10.9]} 31... Ke7 {[%clk 0:00:56.9]} 32. g5
{[%clk 0:00:11.6]} 32... Nd7 {[%clk 0:00:57.5]} 33. Be4 {[%clk 0:00:11.9]} 33...
Rc3 {[%clk 0:00:50.6]} 34. Rdc1 {[%clk 0:00:09.2]} 34... Rbc8 {[%clk 0:00:46.8]}
35. Rd1 {[%clk 0:00:05.2]} 35... Nc5 {[%clk 0:00:45.5]} 36. Bf3 {[%clk
0:00:05.8]} 36... Rd8 {[%clk 0:00:39.2]} 37. Rh1 {[%clk 0:00:04.1]} 37... Rd2
{[%clk 0:00:38.8]} 38. Bd1 {[%clk 0:00:03.8]} 38... Ne4 {[%clk 0:00:37]} 39. Bf3
{[%clk 0:00:02.1]} 0-1

[Event "Late-Titled-Tuesday-Blitz-October-10-2023"]
[Site "Chess.com"]
[Date "2023.10.10"]
[Round "5"]
[White "BulteniBo"]
[Black "DonBroca"]
[Result "1-0"]
[WhiteElo "2525"]
[BlackElo "2232"]
[TimeControl "180+1"]
[EndTime "14:52:06 PDT"]
[Termination "BulteniBo won by resignation"]

1. e4 {[%clk 0:03:00.9]} 1... c5 {[%clk 0:02:58.5]} 2. g3 {[%clk 0:03:00.8]}
2... g6 {[%clk 0:02:58.2]} 3. Bg2 {[%clk 0:03:00.6]} 3... Bg7 {[%clk 0:02:59.1]}
4. Ne2 {[%clk 0:03:00.9]} 4... Nc6 {[%clk 0:03:00]} 5. Nbc3 {[%clk 0:03:01.1]}
5... Nf6 {[%clk 0:03:00.9]} 6. d3 {[%clk 0:03:00.8]} 6... O-O {[%clk 0:03:01.4]}
7. h4 {[%clk 0:03:01.4]} 7... e6 {[%clk 0:02:59]} 8. h5 {[%clk 0:03:01.4]} 8...
Nxh5 {[%clk 0:02:58.6]} 9. Be3 {[%clk 0:03:00.1]} 9... b6 {[%clk 0:02:57.1]} 10.
Qd2 {[%clk 0:02:59.8]} 10... Nd4 {[%clk 0:02:49.8]} 11. O-O-O {[%clk 0:02:50.1]}
11... Bb7 {[%clk 0:02:42.1]} 12. Bh6 {[%clk 0:02:18.7]} 12... f5 {[%clk
0:01:55.7]} 13. Bxg7 {[%clk 0:01:55.2]} 13... Kxg7 {[%clk 0:01:46.1]} 14. Nxd4
{[%clk 0:01:44.7]} 14... cxd4 {[%clk 0:01:41.6]} 15. Ne2 {[%clk 0:01:45.3]}
15... fxe4 {[%clk 0:01:41.9]} 16. dxe4 {[%clk 0:01:38.8]} 16... e5 {[%clk
0:01:16.4]} 17. f4 {[%clk 0:01:37.1]} 17... d6 {[%clk 0:01:06.3]} 18. f5 {[%clk
0:01:33.3]} 18... Ba6 {[%clk 0:01:01.3]} 19. g4 {[%clk 0:00:41.9]} 19... Bxe2
{[%clk 0:00:54.9]} 20. gxh5 {[%clk 0:00:40.6]} 20... Bxh5 {[%clk 0:00:55.3]} 21.
Bf3 {[%clk 0:00:40.2]} 21... Kh8 {[%clk 0:00:23.8]} 22. Bxh5 {[%clk 0:00:37]}
22... gxh5 {[%clk 0:00:24.7]} 23. Rxh5 {[%clk 0:00:35.5]} 23... Rf7 {[%clk
0:00:21.9]} 24. Rdh1 {[%clk 0:00:35.2]} 24... Qf6 {[%clk 0:00:17.4]} 25. Qh2
{[%clk 0:00:33.2]} 25... Qg7 {[%clk 0:00:16.4]} 26. f6 {[%clk 0:00:27.4]} 26...
Qg6 {[%clk 0:00:16]} 27. Rh6 {[%clk 0:00:26.7]} 27... Qg5+ {[%clk 0:00:14.9]}
28. Kb1 {[%clk 0:00:26.6]} 28... Kg8 {[%clk 0:00:08.4]} 29. Rg1 {[%clk
0:00:21.5]} 29... Qxg1+ {[%clk 0:00:04.7]} 30. Qxg1+ {[%clk 0:00:22.4]} 30...
Kf8 {[%clk 0:00:05.1]} 31. Qg5 {[%clk 0:00:21.8]} 31... Rd8 {[%clk 0:00:03.6]}
32. b3 {[%clk 0:00:21.9]} 32... Ke8 {[%clk 0:00:03.9]} 33. Qg8+ {[%clk
0:00:20.9]} 33... Kd7 {[%clk 0:00:02.7]} 34. Qxf7+ {[%clk 0:00:21]} 34... Kc8
{[%clk 0:00:03.6]} 35. Rxh7 {[%clk 0:00:21.4]} 1-0